bitfinex/quotes_SOLUSD_20250612
["timestamp","ask_amount","ask_price","bid_price","bid_amount"]
[1749765854670,7.36452245,152.54,152.51,49.8166166]
[1749765854844,2.45492436,152.53,152.51,49.8166166]
[1749765855169,7.36606825,152.52,152.51,49.8166166]
[1749765855466,2.45538248,152.52,152.51,21.7366166]
[1749765855669,6.55566365,152.54,152.51,49.8166166]
[1749765855868,7.35851551,152.53,152.51,34.64]
[1749765856182,6.55566365,152.54,152.51,34.64]
[1749765856391,6.55566365,152.54,152.51,6.56]
[1749765856670,4.90567973,152.53,152.51,34.64]
[1749765856862,6.55566365,152.54,152.51,6.56]
[1749765857055,7.3607226,152.53,152.51,34.64]
[1749765857246,6.55566365,152.54,152.51,34.64]
[1749765857648,7.36206714,152.53,152.51,34.64]
[1749765857848,6.55566365,152.54,152.51,34.64]
[1749765858059,7.36162397,152.53,152.51,34.64]
[1749765858249,6.55566365,152.54,152.51,34.64]
[1749765858443,7.36155218,152.53,152.51,34.64]
[1749765858644,26.0,152.55,152.52,15.1766166]
[1749765858853,4.90872339,152.54,152.53,15.1766166]
[1749765859169,7.36328674,152.54,152.53,15.1766166]
[1749765859338,4.90931744,152.54,152.53,15.1766166]
[1749765859544,26.0,152.57,152.53,15.1766166]
[1749765859778,7.36364335,152.56,152.54,28.08]
[1749765859953,15.1766166,152.6,152.55,15.1766166]
[1749765860149,7.36359918,152.59,152.56,15.1766166]
[1749765860351,33.36348472,152.58,152.56,15.1766166]
[1749765860583,2.45444444,152.57,152.56,15.1766166]
[1749765860774,7.36328666,152.57,152.56,15.1766166]
[1749765861081,7.36319094,152.57,152.56,15.1766166]
[1749765861247,2.45439698,152.57,152.54,28.08]
[1749765861566,7.36315521,152.56,152.55,15.1766166]
[1749765862067,26.0,152.58,152.55,15.1766166]
[1749765862270,7.36294811,152.57,152.56,15.1766166]
[1749765862445,7.36294317,152.57,152.56,15.1766166]
[1749765862642,26.0,152.58,152.56,15.1766166]
[1749765862854,4.9084639,152.57,152.55,0.14216157]
[1749765863107,2.45391477,152.6,152.56,15.1766166]
[1749765863286,20.06878982,152.63,152.58,15.1766166]
[1749765863448,7.36124167,152.62,152.59,15.1766166]
[1749765863647,7.36117872,152.61,152.6,21.7166166]
[1749765863880,4.89172734,152.64,152.6,49.7966166]
[1749765864185,7.36045501,152.63,152.62,15.1766166]
[1749765864347,4.90678962,152.63,152.62,15.1766166]
[1749765864544,7.35980864,152.63,152.62,15.1766166]
[1749765864747,7.35975257,152.63,152.62,15.1766166]
[1749765865093,159.45927005,152.71,152.62,15.1766166]
[1749765865094,6.54578778,152.77,152.66,19.07613357]
[1749765865384,7.55271818,152.78,152.65,26.0]
[1749765865385,21.6324166,152.79,152.74,15.1766166]
[1749765865585,2.4514931,152.78,152.75,15.1766166]
[1749765865765,2.45147324,152.77,152.75,15.1766166]
[1749765866071,26.0,152.79,152.75,15.1766166]
[1749765866368,2.45124961,152.78,152.75,15.1766166]
[1749765866565,2.45124585,152.77,152.75,15.1766166]
[1749765866765,2.45124496,152.76,152.75,15.1766166]
[1749765866976,12.99915395,152.83,152.75,15.60310131]
[1749765867178,2.45100068,152.82,152.78,15.1766166]
[1749765867379,26.0,152.8,152.78,22.60501932]
[1749765867596,2.45068167,152.79,152.78,22.60501932]
[1749765867763,2.45068284,152.79,152.78,22.60501932]
[1749765867969,26.0,152.8,152.78,22.60501932]
[1749765868370,26.0,152.8,152.76,28.06]
[1749765868569,26.0,152.8,152.78,22.60501932]
[1749765868570,2.45071969,152.79,152.78,22.60501932]
[1749765868773,26.0,152.8,152.78,22.60501932]
[1749765868973,26.0,152.8,152.79,22.60501932]
[1749765869174,28.45056638,152.8,152.79,22.60501932]
[1749765869392,55.14917956,152.81,152.76,28.06]
[1749765869590,55.14917956,152.81,152.75,0.14216157]
[1749765869591,25.05589466,152.8,152.75,22.60501932]
[1749765869787,25.05597059,152.79,152.76,6.52]
[1749765870092,2.45101488,152.78,152.76,6.52]
[1749765870285,22.60501932,152.8,152.76,6.52]
[1749765870486,25.05614798,152.79,152.76,6.52]
[1749765870797,29.1502141,152.79,152.76,6.52]
[1749765870989,2.45110454,152.78,152.76,6.52]
[1749765871181,2.45110495,152.77,152.76,6.52]
[1749765871381,2.4511749,152.77,152.76,6.52]
[1749765871695,22.60501932,152.78,152.76,6.52]
[1749765871872,2.45122523,152.77,152.76,6.52]
[1749765872068,26.0,152.74,152.69,29.12501932]
[1749765872269,2.45173907,152.73,152.69,29.12501932]
[1749765872465,22.60501932,152.73,152.69,6.52]
[1749765872787,29.15280997,152.73,152.69,6.52]
[1749765873183,2.45188689,152.72,152.69,6.52]
[1749765873386,29.15280997,152.73,152.69,6.52]
[1749765873589,2.45190094,152.72,152.69,6.52]
[1749765873791,32.54709593,152.74,152.7,22.60501932]
[1749765873973,26.0,152.74,152.72,22.60501932]
[1749765874174,2.45175852,152.73,152.71,22.60501932]
[1749765874374,32.54710705,152.74,152.71,22.60501932]
[1749765874594,2.45429003,152.73,152.71,22.60501932]
[1749765874790,26.0,152.74,152.71,22.60501932]
[1749765874970,2.45428584,152.73,152.71,22.60501932]
[1749765875165,32.54707509,152.74,152.71,22.60501932]
[1749765875366,2.45428584,152.73,152.71,22.60501932]
[1749765875679,32.54707509,152.74,152.71,22.60501932]
[1749765875897,2.45429043,152.73,152.71,22.60501932]
[1749765876097,32.54707509,152.74,152.7,22.60501932]
[1749765876279,2.45427815,152.73,152.7,50.64501932]
[1749765876475,32.54707509,152.74,152.7,50.64501932]
[1749765876701,17.96973577,152.8,152.73,22.60501932]
[1749765876995,4.9074155,152.78,152.73,28.04]
[1749765877167,7.36123742,152.77,152.76,22.60501932]
[1749765877367,7.36117631,152.77,152.76,22.60501932]
[1749765877597,7.36103374,152.77,152.76,22.60501932]
[1749765877802,55.1496593,152.8,152.76,22.60501932]
[1749765877803,32.54463998,152.8,152.76,22.60501932]
[1749765877982,8.99854405,152.79,152.76,22.60501932]
[1749765878173,4.90718416,152.78,152.76,22.60501932]
[1749765878373,2.45358829,152.77,152.76,22.60501932]
[1749765878591,6.54494388,152.79,152.76,22.60501932]
[1749765878792,7.36095529,152.78,152.75,22.60501932]
[1749765878988,7.36091449,152.77,152.75,22.60501932]
[1749765879196,6.54494388,152.79,152.75,22.60501932]
[1749765879385,26.0,152.78,152.77,22.60501932]
[1749765879586,6.54465466,152.8,152.77,22.60501932]
[1749765879785,26.0,152.81,152.77,22.60501932]
[1749765880012,29.148699,152.82,152.77,22.60501932]
[1749765880175,55.148699,152.82,152.78,6.52]
[1749765881902,6.54480873,152.8,152.78,6.52]
[1749765883127,22.60501932,152.79,152.78,6.52]
[1749765883505,29.14982805,152.8,152.78,6.52]
[1749765883705,6.54480873,152.8,152.78,6.52]
[1749765884121,32.54423761,152.81,152.78,29.12501932]
[1749765884503,32.54423761,152.81,152.78,6.52]
[1749765884810,55.14925693,152.81,152.78,6.52]
[1749765885138,22.60501932,152.8,152.78,6.52]
[1749765885430,22.60501932,152.79,152.78,6.52]
[1749765886805,29.14995027,152.79,152.78,6.52]
[1749765888232,6.54493095,152.79,152.78,6.52]
[1749765888534,29.14995027,152.79,152.78,6.52]
[1749765889638,6.54493095,152.79,152.78,6.52]
[1749765890242,22.60501932,152.83,152.78,29.12501932]
[1749765890539,26.0,152.8,152.78,29.12501932]
[1749765890722,26.0,152.8,152.78,6.52]
[1749765891032,22.60501932,152.82,152.78,6.52]
[1749765891408,48.60501932,152.82,152.78,6.52]
[1749765892138,6.54407434,152.81,152.78,6.52]
[1749765893530,29.14909366,152.81,152.78,6.52]
[1749765893935,6.54407434,152.81,152.78,6.52]
[1749765895333,32.54371992,152.82,152.78,29.12501932]
[1749765895539,26.0,152.8,152.79,22.60501932]
[1749765895916,26.0,152.8,152.78,29.12501932]
[1749765898419,26.0,152.81,152.79,22.60501932]
[1749765898934,22.60501932,152.84,152.79,22.60501932]
[1749765899136,22.60501932,152.84,152.78,6.52]
[1749765899137,6.54321795,152.83,152.8,22.60501932]
[1749765899344,6.54321795,152.83,152.79,22.60501932]
[1749765899526,55.14823727,152.83,152.79,22.60501932]
[1749765899833,32.54321795,152.83,152.79,22.60501932]
[1749765900042,55.14823727,152.83,152.79,22.60501932]
[1749765900536,32.54321795,152.83,152.78,29.12501932]
[1749765900744,55.14823727,152.83,152.79,22.60501932]
[1749765901239,8.98433413,152.82,152.78,29.12501932]
[1749765901450,2.44024957,152.81,152.78,29.12501932]
[1749765901631,6.5440728,152.82,152.78,29.12501932]
[1749765901946,2.44025922,152.81,152.78,29.12501932]
[1749765902121,6.5440728,152.82,152.78,6.52]
[1749765902122,26.0,152.79,152.78,6.52]
[1749765902318,28.44057346,152.79,152.78,6.52]
[1749765902637,48.60501932,152.79,152.78,6.52]
[1749765902854,51.04572168,152.79,152.78,6.52]
[1749765903150,51.04572168,152.79,152.7,26.0]
[1749765903151,26.0,152.75,152.72,6.5]
[1749765903455,22.90875769,152.78,152.72,6.5]
[1749765903456,25.04628037,152.74,152.72,6.5]
[1749765903617,26.0,152.75,152.72,6.5]
[1749765903820,22.60501932,152.74,152.72,6.5]
[1749765904015,2.44126725,152.73,152.72,6.5]
[1749765904218,2.44129241,152.73,152.72,6.5]
[1749765904431,48.60501932,152.75,152.72,6.5]
[1749765905062,2.44129054,152.74,152.72,6.5]
[1749765905270,6.54707345,152.74,152.72,6.5]
[1749765905564,22.60501932,152.73,152.72,6.5]
[1749765905732,25.04645833,152.73,152.72,6.5]
[1749765906061,25.04661383,152.73,152.72,6.5]
[1749765906265,22.60501932,152.73,152.72,6.5]
[1749765906452,25.04673111,152.73,152.72,6.5]
[1749765906631,22.60501932,152.73,152.72,6.5]
[1749765906837,25.04686091,152.73,152.72,6.5]
[1749765907041,25.0468609,152.73,152.72,6.5]
[1749765907246,34.01207503,152.73,152.72,6.5]
[1749765908182,36.45394279,152.73,152.72,6.5]
[1749765908370,34.01207503,152.73,152.72,6.5]
[1749765908538,36.4540035,152.73,152.72,6.5]
[1749765908745,34.01207503,152.73,152.72,6.5]
[1749765909371,84.12233571,152.73,152.72,6.5]
[1749765909672,26.0,152.69,152.65,6.5]
[1749765909838,25.04630788,152.68,152.65,6.5]
[1749765910038,26.0,152.69,152.65,6.5]
[1749765910248,22.60501932,152.67,152.65,6.5]
[1749765910456,22.60501932,152.66,152.65,6.5]
[1749765910869,55.91827693,152.66,152.65,6.5]
[1749765911075,53.47820958,152.66,152.65,6.5]
[1749765911244,36.46815081,152.66,152.65,6.5]
[1749765911449,11.42369464,152.66,152.65,6.5]
[1749765911643,2.4390734,152.66,152.65,6.5]
[1749765911984,28.43886454,152.66,152.65,29.10501932]
[1749765912152,28.43908976,152.66,152.65,29.10501932]
[1749765912354,28.43908976,152.66,152.65,6.5]
[1749765912355,28.43906496,152.66,152.65,6.5]
[1749765912561,26.0,152.66,152.65,6.5]
[1749765912763,28.43904672,152.66,152.65,29.10501932]
[1749765912942,2.43904672,152.66,152.65,29.10501932]
[1749765913143,2.43905573,152.66,152.65,29.10501932]
[1749765913344,2.43905573,152.66,152.65,6.5]
[1749765913550,4.87319026,152.68,152.65,6.5]
[1749765913749,2.43862355,152.67,152.65,6.5]
[1749765913968,55.15434952,152.69,152.65,6.5]
[1749765914183,2.43878597,152.68,152.65,6.5]
[1749765914351,2.43878689,152.67,152.65,6.5]
[1749765914556,55.15434952,152.69,152.65,6.5]
[1749765914767,2.43884412,152.68,152.65,6.5]
[1749765914952,2.4388428,152.67,152.65,6.5]
[1749765915267,2.4389506,152.66,152.65,6.5]
[1749765915462,55.15434952,152.69,152.65,6.5]
[1749765916971,22.60501932,152.68,152.65,6.5]
[1749765917573,22.60501932,152.67,152.65,6.5]
[1749765917752,26.0,152.66,152.65,6.5]
[1749765918367,48.60501932,152.67,152.65,6.5]
[1749765918868,29.1555237,152.66,152.65,6.5]
[1749765920457,31.59303381,152.66,152.65,6.5]
[1749765920677,31.59288786,152.66,152.65,6.5]
[1749765920984,22.60501932,152.66,152.65,6.5]
[1749765922781,6.54878847,152.7,152.65,6.5]
[1749765922961,6.54852457,152.71,152.67,22.60501932]
[1749765923205,39.85744889,152.75,152.68,22.60501932]
[1749765923360,39.85744889,152.75,152.65,42.5845]
[1749765923361,31.58882761,152.74,152.69,22.60501932]
[1749765923554,16.36748207,152.75,152.71,22.60501932]
[1749765923555,2.43673484,152.73,152.71,22.60501932]
[1749765923893,16.364387,152.78,152.69,28.0]
[1749765923894,6.54450261,152.8,152.72,22.60501932]
[1749765924078,25.04245094,152.79,152.74,22.60501932]
[1749765924381,26.0,152.76,152.74,29.10501932]
[1749765924567,2.45032935,152.75,152.74,29.10501932]
[1749765924770,2.45053882,152.75,152.74,29.10501932]
[1749765925280,26.0,152.76,152.74,6.5]
[1749765925583,26.0,152.75,152.74,6.5]
[1749765925763,48.60501932,152.75,152.74,6.5]
[1749765925950,48.60501932,152.75,152.72,6.5]
[1749765925951,2.45128307,152.75,152.72,6.5]
[1749765926146,28.45124507,152.74,152.72,6.5]
[1749765926351,26.0,152.74,152.72,6.5]
[1749765926565,2.45124468,152.73,152.72,6.5]
[1749765926779,55.15139214,152.76,152.71,22.60501932]
[1749765927075,2.45145428,152.75,152.72,6.5]
[1749765927280,2.45145428,152.74,152.72,6.5]
[1749765927483,55.15139214,152.76,152.72,6.5]
[1749765927781,2.45144152,152.75,152.72,6.5]
[1749765927954,2.45144152,152.74,152.72,6.5]
[1749765928280,2.45143967,152.73,152.72,6.5]
[1749765928483,55.15139214,152.76,152.72,6.5]
[1749765928658,26.0,152.73,152.72,6.5]
[1749765928853,57.60378356,152.73,152.72,6.5]
[1749765929058,55.15252144,152.73,152.72,6.5]
[1749765929259,29.15227004,152.74,152.72,6.5]
[1749765929457,2.45162153,152.73,152.72,6.5]
[1749765929658,2.45154794,152.73,152.72,6.5]
[1749765929880,2.45152353,152.73,152.72,6.5]
[1749765930084,29.15227004,152.74,152.72,6.5]
[1749765930463,22.60501932,152.73,152.72,6.5]
[1749765930660,25.05638871,152.73,152.72,6.5]
[1749765930855,31.60389083,152.73,152.72,6.5]
[1749765931060,55.15252144,152.73,152.72,6.5]
[1749765931469,57.60389083,152.73,152.72,6.5]
[1749765931684,55.15252144,152.73,152.72,6.5]
[1749765931861,57.60372268,152.73,152.72,6.5]
[1749765932062,57.60390279,152.73,152.72,6.5]
[1749765932675,26.0,152.73,152.72,6.5]
[1749765932877,32.54750212,152.73,152.72,6.5]
[1749765933258,55.15252144,152.73,152.72,6.5]
[1749765934477,26.0,152.7,152.66,6.48]
[1749765934681,22.60501932,152.68,152.66,6.48]
[1749765934978,26.0,152.67,152.66,6.48]
[1749765935295,55.15509464,152.67,152.66,6.48]
[1749765940289,73.8047435,152.67,152.66,6.48]
[1749765940964,75.3887435,152.67,152.66,6.48]
[1749765941575,18.64964886,152.66,152.59,6.48]
[1749765941793,22.60501932,152.61,152.59,6.48]
[1749765942395,26.0,152.66,152.6,22.60501932]
[1749765942564,22.60501932,152.65,152.6,22.60501932]
[1749765943090,22.60501932,152.65,152.59,6.48]
[1749765943091,48.60501932,152.62,152.59,6.48]
[1749765943793,48.60501932,152.62,152.58,29.08501932]
[1749765943994,26.0,152.59,152.58,6.48]
[1749765945193,22.60501932,152.59,152.58,6.48]
[1749765945410,0.42648471,152.65,152.58,6.48]
[1749765945411,26.0,152.63,152.58,29.08501932]
[1749765945718,22.92676535,152.66,152.61,22.60501932]
[1749765945719,26.0,152.62,152.61,22.60501932]
[1749765945893,26.0,152.61,152.6,22.60501932]
[1749765946610,28.44999717,152.61,152.59,27.98]
[1749765946791,26.0,152.61,152.59,27.98]
[1749765947178,55.15702224,152.63,152.59,27.98]
[1749765948089,55.15702224,152.63,152.58,57.06501932]
[1749765948707,22.60501932,152.62,152.58,57.06501932]
[1749765948902,22.60501932,152.61,152.58,34.46]
[1749765949204,29.15783077,152.61,152.58,34.46]
[1749765949601,22.60501932,152.6,152.58,34.46]
[1749765950092,29.15783077,152.61,152.58,34.46]
[1749765950501,22.60501932,152.61,152.58,34.46]
[1749765951888,22.60501932,152.61,152.58,6.48]
[1749765952316,22.60501932,152.6,152.58,6.48]
[1749765953170,26.0,152.59,152.58,6.48]
[1749765963002,18.64964886,152.66,152.58,6.48]
[1749765963186,175.70146058,152.7,152.61,15.1127978]
[1749765963187,1.584,152.67,152.61,15.1127978]
[1749765963517,21.66263054,152.68,152.63,15.1127978]
[1749765963709,26.0,152.65,152.63,15.1127978]
[1749765963885,18.64964886,152.69,152.59,29.6453]
[1749765963886,33.76244666,152.69,152.64,15.1127978]
[1749765964206,6.3183,152.7,152.65,15.1127978]
[1749765964207,21.66176117,152.7,152.65,15.1127978]
[1749765964381,26.0,152.66,152.65,15.1127978]
[1749765964581,21.66225369,152.69,152.65,15.1127978]
[1749765964778,26.0,152.66,152.65,15.1127978]
[1749765965803,26.0,152.66,152.64,15.1127978]
[1749765967798,26.0,152.66,152.62,27.98]
[1749765967987,26.0,152.66,152.64,15.1127978]
[1749765969521,1.5234,152.71,152.65,15.1127978]
[1749765969522,26.0,152.67,152.65,15.1127978]
[1749765969683,15.1127978,152.7,152.65,15.1127978]
[1749765969882,6.54732152,152.74,152.69,15.1127978]
[1749765970089,1.5179,152.75,152.71,15.1127978]
[1749765970389,15.1127978,152.74,152.69,27.96]
[1749765970704,15.1127978,152.72,152.69,27.96]
[1749765971217,21.66075542,152.72,152.69,27.96]
[1749765971705,15.1127978,152.71,152.64,6.1127]
[1749765971891,15.1127978,152.7,152.66,15.1127978]
[1749765972281,26.0,152.71,152.62,1.5858]
[1749765972282,15.1127978,152.68,152.62,1.5858]
[1749765972485,26.0,152.69,152.62,1.5858]
[1749765972486,15.1127978,152.67,152.63,6.46]
[1749765972923,21.66289403,152.67,152.63,6.46]
[1749765973091,15.1127978,152.66,152.63,6.46]
[1749765973791,21.66289403,152.67,152.63,6.46]
[1749765975384,41.1127978,152.64,152.63,6.46]
[1749765976714,47.66416048,152.64,152.63,6.46]
[1749765978220,26.0,152.61,152.55,15.1127978]
[1749765978385,26.0,152.61,152.58,15.1127978]
[1749765978589,26.0,152.61,152.59,15.1127978]
[1749765981120,26.0,152.61,152.58,15.1127978]
[1749765981329,41.1127978,152.61,152.57,27.96]
[1749765981505,47.6654362,152.62,152.57,43.0727978]
[1749765982628,15.1127978,152.61,152.57,43.0727978]
[1749765983425,15.1127978,152.61,152.57,27.96]
[1749765983634,15.1127978,152.61,152.57,43.0727978]
[1749765983835,21.66552826,152.61,152.57,43.0727978]
[1749765984051,15.1127978,152.6,152.56,15.1127978]
[1749765984329,26.0,152.59,152.56,15.1127978]
[1749765984528,26.0,152.59,152.57,15.1127978]
[1749765984727,26.0,152.6,152.55,28.08216157]
[1749765984912,26.0,152.6,152.56,15.1127978]
[1749765986430,26.0,152.6,152.55,28.10216157]
[1749765986605,47.66591291,152.6,152.55,27.96]
[1749765986806,15.1127978,152.58,152.54,110.0727978]
[1749765987021,15.1127978,152.59,152.54,110.0727978]
[1749765987422,21.66671939,152.59,152.54,110.0727978]
[1749765987732,21.66671939,152.59,152.54,6.46]
[1749765987733,15.1127978,152.58,152.54,6.46]
[1749765988030,15.1127978,152.58,152.54,21.5727978]
[1749765988608,26.0,152.55,152.54,6.46]
[1749765989217,41.1127978,152.56,152.54,6.46]
[1749765990019,26.0,152.56,152.54,6.46]
[1749765990220,47.66762888,152.56,152.54,6.46]
[1749765990418,41.1127978,152.56,152.54,6.46]
[1749765990627,26.0,152.56,152.54,6.46]
[1749765991026,15.1127978,152.55,152.54,6.46]
[1749765991234,26.0,152.56,152.54,6.46]
[1749765991630,6.4079,152.62,152.55,15.1127978]
[1749765991828,15.1127978,152.62,152.57,15.1127978]
[1749765992010,15.1127978,152.63,152.58,15.1127978]
[1749765992337,41.1127978,152.62,152.57,15.1127978]
[1749765993936,6.55265054,152.61,152.57,15.1127978]
[1749765994528,21.66544834,152.61,152.57,15.1127978]
[1749765994827,21.66544834,152.61,152.56,15.1127978]
[1749765995944,15.1127978,152.59,152.54,8.0698]
[1749765996242,21.66544834,152.61,152.56,15.1127978]
[1749765999037,15.1127978,152.6,152.55,15.1127978]
[1749765999227,15.1127978,152.6,152.54,8.0698]
[1749765999428,15.1127978,152.6,152.55,15.1127978]
[1749766000345,21.66614043,152.6,152.55,15.1127978]
[1749766001347,21.66614043,152.6,152.54,8.0698]
[1749766001547,26.0,152.58,152.55,15.1127978]
[1749766001747,6.55179191,152.63,152.57,15.1127978]
[1749766002049,26.52952381,152.65,152.6,15.1127978]
[1749766002253,21.66390026,152.65,152.6,15.1127978]
[1749766002451,47.66390026,152.65,152.6,15.1127978]
[1749766004738,47.66390026,152.65,152.57,27.94]
[1749766004739,15.1127978,152.64,152.59,15.1127978]
[1749766005235,21.66425823,152.64,152.59,15.1127978]
[1749766005549,15.1127978,152.62,152.58,15.1127978]
[1749766005964,21.66425823,152.64,152.6,15.1127978]
[1749766006123,26.0,152.62,152.6,15.1127978]
[1749766006329,26.0,152.64,152.61,15.1127978]
[1749766006528,26.0,152.63,152.62,15.1127978]
[1749766006935,26.0,152.63,152.61,15.1127978]
[1749766008631,15.1127978,152.67,152.62,15.1127978]
[1749766008837,19.97995124,152.69,152.64,15.1127978]
[1749766009052,12.63977378,152.7,152.66,15.1127978]
[1749766009053,4.86715344,152.7,152.66,15.1127978]
[1749766009252,15.1127978,152.71,152.66,15.1127978]
[1749766009454,6.54810538,152.72,152.68,15.1127978]
[1749766009752,47.66090318,152.72,152.68,15.1127978]
[1749766009945,26.0,152.72,152.68,15.1127978]
[1749766010140,21.66045605,152.73,152.68,15.1127978]
[1749766010341,26.0,152.7,152.68,15.1127978]
[1749766011539,26.0,152.7,152.66,15.1127978]
[1749766011857,32.54893011,152.7,152.66,15.1127978]
[1749766013153,2.450925,152.69,152.67,15.1127978]
[1749766013349,26.0,152.69,152.68,15.1127978]
[1749766013657,21.66088469,152.72,152.68,15.1127978]
[1749766013867,26.0,152.7,152.68,15.1127978]
[1749766014159,2.45062371,152.69,152.68,15.1127978]
[1749766014361,2.45060221,152.69,152.68,15.1127978]
[1749766014561,2.45049091,152.69,152.68,15.1127978]
[1749766014757,15.1127978,152.71,152.67,15.1127978]
[1749766014947,2.45009956,152.7,152.67,15.1127978]
[1749766015134,21.66088469,152.72,152.67,15.1127978]
[1749766015339,2.45019534,152.71,152.68,15.1127978]
[1749766015561,6.54808689,152.72,152.68,15.1127978]
[1749766016666,21.66088469,152.72,152.67,15.1127978]
[1749766017253,6.54808689,152.72,152.67,15.1127978]
[1749766017458,21.66088469,152.72,152.67,15.1127978]
[1749766017851,6.54808689,152.72,152.68,15.1127978]
[1749766018363,21.66088469,152.72,152.68,15.1127978]
[1749766019166,21.66088469,152.72,152.67,15.1127978]
[1749766019848,21.66088469,152.72,152.68,15.1127978]
[1749766020256,21.66088469,152.72,152.65,27.94]
[1749766020570,21.66088469,152.72,152.68,15.1127978]
[1749766020802,6.54808689,152.72,152.7,15.1127978]
[1749766020946,26.0,152.7,152.69,15.1127978]
[1749766021839,26.0,152.7,152.65,27.94]
[1749766022041,26.0,152.7,152.67,15.1127978]
[1749766022270,26.0,152.7,152.68,15.1127978]
[1749766022848,26.0,152.7,152.69,15.1127978]
[1749766023062,32.54707345,152.74,152.69,15.1127978]
[1749766023267,26.0,152.72,152.71,15.1127978]
[1749766023444,6.54672959,152.75,152.71,15.1127978]
[1749766023644,26.0,152.73,152.72,6.44]
[1749766023843,26.0,152.73,152.72,21.5527978]
[1749766024248,6.54628143,152.76,152.72,6.44]
[1749766024450,26.0,152.73,152.72,21.5527978]
[1749766025155,32.54628143,152.76,152.72,21.5527978]
[1749766025476,48.91182214,152.76,152.72,21.5527978]
[1749766025650,64.02461994,152.76,152.72,6.44]
[1749766025973,64.02461994,152.76,152.72,21.5527978]
[1749766026269,64.02461994,152.76,152.72,6.44]
[1749766026574,6.54628143,152.76,152.73,15.1127978]
[1749766026774,26.0,152.75,152.73,15.1127978]
[1749766027253,32.546783,152.75,152.72,21.5527978]
[1749766028061,32.546783,152.75,152.72,6.44]
[1749766028300,47.6595808,152.75,152.72,6.44]
[1749766028476,32.546783,152.75,152.72,6.44]
[1749766028972,26.0,152.74,152.72,21.5527978]
[1749766029170,26.0,152.74,152.73,15.1127978]
[1749766029377,26.0,152.75,152.73,15.1127978]
[1749766029681,26.0,152.75,152.74,15.1127978]
[1749766029851,26.0,152.75,152.72,6.44]
[1749766030052,26.0,152.75,152.74,15.1127978]
[1749766030268,26.0,152.75,152.73,15.1127978]
[1749766030550,6.54493095,152.79,152.74,15.1127978]
[1749766030749,32.54493095,152.79,152.75,15.1127978]
[1749766031059,26.0,152.77,152.76,15.1127978]
[1749766031457,26.0,152.77,152.75,15.1127978]
[1749766031775,26.0,152.77,152.73,27.9]
[1749766031961,26.0,152.77,152.73,43.0127978]
[1749766033157,6.54621628,152.76,152.73,43.0127978]
[1749766036578,26.0,152.77,152.74,15.1127978]
[1749766036780,26.0,152.77,152.76,15.1127978]
[1749766037484,26.0,152.78,152.76,15.1127978]
[1749766037974,6.54519509,152.79,152.73,27.9]
[1749766037975,6.54426798,152.81,152.77,15.1127978]
[1749766038174,2.43648357,152.8,152.77,15.1127978]
[1749766038382,2.43649973,152.79,152.77,15.1127978]
[1749766038577,2.43651417,152.8,152.78,15.1127978]
[1749766038883,32.54426798,152.81,152.78,15.1127978]
[1749766039263,2.43672453,152.8,152.78,15.1127978]
[1749766039479,32.54426798,152.81,152.76,27.88]
[1749766039676,32.54426798,152.81,152.77,15.1127978]
[1749766039978,47.65706578,152.81,152.76,42.9927978]
[1749766040177,2.4366271,152.8,152.76,42.9927978]
[1749766040372,47.65706578,152.81,152.76,42.9927978]
[1749766040683,26.0,152.79,152.78,15.1127978]
[1749766041065,26.0,152.79,152.77,15.1127978]
[1749766041778,6.54330818,152.83,152.77,15.1127978]
[1749766041979,24.34694567,152.85,152.76,27.88]
[1749766041980,15.1127978,152.84,152.79,15.1127978]
[1749766042182,41.1127978,152.84,152.77,0.42648471]
[1749766042385,2.43675391,152.83,152.8,15.1127978]
[1749766042597,2.43685383,152.82,152.8,15.1127978]
[1749766042755,26.0,152.84,152.79,27.88]
[1749766042954,26.0,152.82,152.81,6.44]
[1749766045758,6.54150585,152.87,152.81,21.5527978]
[1749766045958,26.0,152.83,152.81,21.5527978]
[1749766046394,41.1127978,152.86,152.81,21.5527978]
[1749766046689,2.43598613,152.85,152.81,6.44]
[1749766046901,26.0,152.86,152.81,6.44]